[Event "Titled Tuesday Blitz December 13 Early 2022"]
[White "Deuer, Marius"]
[Black "Cruz, Jonathan"]
[WhiteFideId "16236432"]
[BlackFideId "3802124"]
[WhiteElo "2226"]
[BlackElo "2407"]
[Result "1-0"]
[Round "01"]
[TimeControl "180+1"]
[Date "2022.12.14"]
[WhiteClock "0:00:02"]
[BlackClock "0:00:01"]

1. d4 {[%clk 0:02:57]}  d5 {[%clk 0:02:53]} 2. c4 {[%clk 0:02:54]}  c6 {[%clk 0:02:52]} 3. Bf4 {[%clk 0:02:50]}  Nf6 {[%clk 0:02:52]} 4. e3 {[%clk 0:02:51]}  g6 {[%clk 0:02:50]} 5. Nf3 {[%clk 0:02:50]}  Bg7 {[%clk 0:02:50]} 6. h3 {[%clk 0:02:51]}  O-O {[%clk 0:02:49]} 7. Nc3 {[%clk 0:02:51]}  b6 {[%clk 0:02:41]} 8. Be2 {[%clk 0:02:21]}  Bb7 {[%clk 0:01:55]} 9. O-O {[%clk 0:02:19]}  e6 {[%clk 0:01:46]} 10. Rc1 {[%clk 0:01:56]}  Nbd7 {[%clk 0:01:38]} 11. b4 {[%clk 0:01:55]}  dxc4 {[%clk 0:01:36]} 12. Bxc4 {[%clk 0:01:53]}  Nd5 {[%clk 0:01:36]} 13. Nxd5 {[%clk 0:01:50]}  exd5 {[%clk 0:01:36]} 14. Bd3 {[%clk 0:01:50]}  Re8 {[%clk 0:01:34]} 15. Qb3 {[%clk 0:01:50]}  Qe7 {[%clk 0:01:13]} 16. a4 {[%clk 0:01:41]}  a5 {[%clk 0:00:53]} 17. bxa5 {[%clk 0:01:37]}  Rxa5 {[%clk 0:00:52]} 18. Bc7 {[%clk 0:01:32]}  Rea8 {[%clk 0:00:43]} 19. Ra1 {[%clk 0:01:29]}  Ba6 {[%clk 0:00:29]} 20. Bxa6 {[%clk 0:01:23]}  R5xa6 {[%clk 0:00:29]} 21. Qc2 {[%clk 0:01:15]}  c5 {[%clk 0:00:22]} 22. Bf4 {[%clk 0:00:39]}  Qe6 {[%clk 0:00:22]} 23. Rfb1 {[%clk 0:00:38]}  Qc6 {[%clk 0:00:22]} 24. Qd1 {[%clk 0:00:22]}  Rxa4 {[%clk 0:00:18]} 25. Rxa4 {[%clk 0:00:23]}  Qxa4 {[%clk 0:00:19]} 26. dxc5 {[%clk 0:00:23]}  Qxd1+ {[%clk 0:00:10]} 27. Rxd1 {[%clk 0:00:24]}  Nxc5 {[%clk 0:00:10]} 28. Rxd5 {[%clk 0:00:24]}  Ne4 {[%clk 0:00:09]} 29. Bc7 {[%clk 0:00:07]}  Bf8 {[%clk 0:00:03]} 30. Bxb6 {[%clk 0:00:06]}  Ra1+ {[%clk 0:00:04]} 31. Kh2 {[%clk 0:00:07]}  Nxf2 {[%clk 0:00:04]} 32. Rd8 {[%clk 0:00:07]}  Rh1+ {[%clk 0:00:03]} 33. Kg3 {[%clk 0:00:07]}  Ne4+ {[%clk 0:00:04]} 34. Kf4 {[%clk 0:00:07]}  Nf6 {[%clk 0:00:01]} 35. Bc5 {[%clk 0:00:04]}  Nh5+ {[%clk 0:00:01]} 36. Kg5 {[%clk 0:00:02]} 1-0


[Site "https://www.chess.com"]

[Event "Titled Tuesday Blitz December 13 Early 2022"]
[White "Donskov, Anatoly"]
[Black "Domingo Nunez, Ruben"]
[WhiteFideId "24143413"]
[BlackFideId "22245570"]
[WhiteElo "2219"]
[BlackElo "2406"]
[Result "0-1"]
[Round "01"]
[TimeControl "180+1"]
[Date "2022.12.14"]
[WhiteClock "0:00:03"]
[BlackClock "0:00:31"]

1. e4 {[%clk 0:03:00]}  d6 {[%clk 0:02:55]} 2. d4 {[%clk 0:03:00]}  Nf6 {[%clk 0:02:56]} 3. Nc3 {[%clk 0:03:00]}  Nbd7 {[%clk 0:02:55]} 4. f4 {[%clk 0:02:55]}  g6 {[%clk 0:02:55]} 5. Nf3 {[%clk 0:02:55]}  Bg7 {[%clk 0:02:55]} 6. Bd3 {[%clk 0:02:43]}  O-O {[%clk 0:02:55]} 7. O-O {[%clk 0:02:43]}  c5 {[%clk 0:02:55]} 8. d5 {[%clk 0:02:22]}  Qc7 {[%clk 0:02:54]} 9. Qe2 {[%clk 0:02:15]}  a6 {[%clk 0:02:47]} 10. a4 {[%clk 0:02:14]}  Nb6 {[%clk 0:02:36]} 11. a5 {[%clk 0:02:13]}  c4 {[%clk 0:02:36]} 12. axb6 {[%clk 0:02:06]}  Qxb6+ {[%clk 0:02:37]} 13. Be3 {[%clk 0:01:55]}  cxd3 {[%clk 0:02:07]} 14. cxd3 {[%clk 0:01:41]}  Qb4 {[%clk 0:02:05]} 15. Ra4 {[%clk 0:01:35]}  Qb3 {[%clk 0:02:05]} 16. Nd4 {[%clk 0:01:24]}  Qb6 {[%clk 0:01:56]} 17. Ne6 {[%clk 0:01:24]}  Qb3 {[%clk 0:01:54]} 18. Nxf8 {[%clk 0:01:20]}  Kxf8 {[%clk 0:01:53]} 19. Bd4 {[%clk 0:01:06]}  Kg8 {[%clk 0:01:49]} 20. e5 {[%clk 0:01:03]}  Nxd5 {[%clk 0:01:45]} 21. exd6 {[%clk 0:00:38]}  Nxc3 {[%clk 0:01:40]} 22. Bxc3 {[%clk 0:00:23]}  Qxa4 {[%clk 0:01:29]} 23. Bxg7 {[%clk 0:00:19]}  Kxg7 {[%clk 0:01:29]} 24. Qe5+ {[%clk 0:00:19]}  Kg8 {[%clk 0:01:30]} 25. dxe7 {[%clk 0:00:16]}  Be6 {[%clk 0:01:26]} 26. d4 {[%clk 0:00:15]}  Qb5 {[%clk 0:01:23]} 27. Qf6 {[%clk 0:00:11]}  Qf5 {[%clk 0:01:21]} 28. Qxf5 {[%clk 0:00:06]}  Bxf5 {[%clk 0:01:21]} 29. Re1 {[%clk 0:00:06]}  Re8 {[%clk 0:01:18]} 30. d5 {[%clk 0:00:06]}  f6 {[%clk 0:01:19]} 31. d6 {[%clk 0:00:07]}  Kf7 {[%clk 0:01:19]} 32. Rd1 {[%clk 0:00:05]}  Bd7 {[%clk 0:01:19]} 33. Re1 {[%clk 0:00:05]}  Rc8 {[%clk 0:01:19]} 34. g4 {[%clk 0:00:04]}  Bxg4 {[%clk 0:01:15]} 35. Kf2 {[%clk 0:00:04]}  Bd7 {[%clk 0:01:15]} 36. Kg3 {[%clk 0:00:04]}  Rc6 {[%clk 0:01:14]} 37. Rd1 {[%clk 0:00:04]}  Rb6 {[%clk 0:01:08]} 38. Rd2 {[%clk 0:00:03]}  Rb3+ {[%clk 0:01:06]} 39. Kf2 {[%clk 0:00:03]}  Rh3 {[%clk 0:01:05]} 40. Ke1 {[%clk 0:00:03]}  Re3+ {[%clk 0:01:01]} 41. Kf2 {[%clk 0:00:03]}  Re4 {[%clk 0:01:01]} 42. Kf3 {[%clk 0:00:03]}  Re6 {[%clk 0:00:59]} 43. h4 {[%clk 0:00:02]}  Ke8 {[%clk 0:00:47]} 44. b4 {[%clk 0:00:02]}  Bc6+ {[%clk 0:00:48]} 45. Kg4 {[%clk 0:00:02]}  Re3 {[%clk 0:00:48]} 46. f5 {[%clk 0:00:02]}  Re4+ {[%clk 0:00:47]} 47. Kg3 {[%clk 0:00:02]}  gxf5 {[%clk 0:00:46]} 48. h5 {[%clk 0:00:02]}  Re3+ {[%clk 0:00:43]} 49. Kh4 {[%clk 0:00:01]}  Kd7 {[%clk 0:00:40]} 50. h6 {[%clk 0:00:02]}  Re4+ {[%clk 0:00:39]} 51. Kh5 {[%clk 0:00:02]}  Re6 {[%clk 0:00:34]} 52. Kh4 {[%clk 0:00:02]}  f4 {[%clk 0:00:30]} 53. Rf2 {[%clk 0:00:02]}  Kxd6 {[%clk 0:00:30]} 54. Rxf4 {[%clk 0:00:02]}  Kxe7 {[%clk 0:00:30]} 55. Rg4 {[%clk 0:00:02]}  Re4 {[%clk 0:00:30]} 56. Kh5 {[%clk 0:00:02]}  Rxg4 {[%clk 0:00:30]} 57. Kxg4 {[%clk 0:00:03]}  Ke6 {[%clk 0:00:31]} 0-1


[Site "https://www.chess.com"]

[Event "Titled Tuesday Blitz December 13 Early 2022"]
[White "Dudzinski, Pawel"]
[Black "Munkhgal, Gombosuren"]
[WhiteFideId "1117890"]
[BlackFideId "4901266"]
[WhiteElo "2099"]
[BlackElo "2577"]
[Result "0-1"]
[Round "01"]
[TimeControl "180+1"]
[Date "2022.12.14"]
[WhiteClock "0:00:17"]
[BlackClock "0:02:04"]

1. e4 {[%clk 0:02:54]}  d6 {[%clk 0:03:00]} 2. c4 {[%clk 0:02:52]}  Nf6 {[%clk 0:03:00]} 3. Nc3 {[%clk 0:02:53]}  g6 {[%clk 0:03:00]} 4. g3 {[%clk 0:02:53]}  Bg7 {[%clk 0:03:01]} 5. Bg2 {[%clk 0:02:54]}  O-O {[%clk 0:03:01]} 6. Nge2 {[%clk 0:02:55]}  e5 {[%clk 0:03:02]} 7. d4 {[%clk 0:02:55]}  Nc6 {[%clk 0:03:02]} 8. d5 {[%clk 0:02:50]}  Ne7 {[%clk 0:03:02]} 9. O-O {[%clk 0:02:51]}  Nd7 {[%clk 0:03:00]} 10. f4 {[%clk 0:02:50]}  f5 {[%clk 0:02:59]} 11. h3 {[%clk 0:02:44]}  Nc5 {[%clk 0:02:54]} 12. Kh2 {[%clk 0:02:37]}  fxe4 {[%clk 0:02:51]} 13. Nxe4 {[%clk 0:02:34]}  Nxe4 {[%clk 0:02:52]} 14. Bxe4 {[%clk 0:02:34]}  Bf5 {[%clk 0:02:51]} 15. Bxf5 {[%clk 0:02:32]}  Nxf5 {[%clk 0:02:51]} 16. g4 {[%clk 0:02:33]}  Nd4 {[%clk 0:02:51]} 17. Nxd4 {[%clk 0:02:31]}  exd4 {[%clk 0:02:52]} 18. Qd3 {[%clk 0:02:29]}  Qh4 {[%clk 0:02:50]} 19. Bd2 {[%clk 0:02:26]}  Rae8 {[%clk 0:02:50]} 20. Rae1 {[%clk 0:02:24]}  c5 {[%clk 0:02:46]} 21. dxc6 {[%clk 0:02:20]}  bxc6 {[%clk 0:02:47]} 22. c5 {[%clk 0:02:14]}  d5 {[%clk 0:02:44]} 23. Qg3 {[%clk 0:02:10]}  Qd8 {[%clk 0:02:41]} 24. Rxe8 {[%clk 0:02:05]}  Rxe8 {[%clk 0:02:41]} 25. Re1 {[%clk 0:02:06]}  Re4 {[%clk 0:02:41]} 26. Qb3 {[%clk 0:01:43]}  Qe7 {[%clk 0:02:37]} 27. Rxe4 {[%clk 0:01:38]}  Qxe4 {[%clk 0:02:38]} 28. Qb8+ {[%clk 0:01:39]}  Bf8 {[%clk 0:02:38]} 29. Qe5 {[%clk 0:01:35]}  Qxe5 {[%clk 0:02:34]} 30. fxe5 {[%clk 0:01:36]}  Bxc5 {[%clk 0:02:34]} 31. Kg3 {[%clk 0:01:29]}  Kf7 {[%clk 0:02:34]} 32. Kh4 {[%clk 0:01:25]}  Be7+ {[%clk 0:02:34]} 33. Kg3 {[%clk 0:01:23]}  Ke6 {[%clk 0:02:35]} 34. Kf4 {[%clk 0:01:18]}  g5+ {[%clk 0:02:35]} 35. Kf3 {[%clk 0:01:18]}  Kxe5 {[%clk 0:02:36]} 36. b4 {[%clk 0:01:18]}  Bd8 {[%clk 0:02:27]} 37. a3 {[%clk 0:01:17]}  h6 {[%clk 0:02:25]} 38. Be1 {[%clk 0:01:15]}  Be7 {[%clk 0:02:19]} 39. Bd2 {[%clk 0:01:15]}  Ke6 {[%clk 0:02:19]} 40. Ke2 {[%clk 0:01:14]}  Bd6 {[%clk 0:02:15]} 41. Kd3 {[%clk 0:01:13]}  Bf4 {[%clk 0:02:04]} 42. Bxf4 {[%clk 0:01:05]}  gxf4 {[%clk 0:02:04]} 43. Kxd4 {[%clk 0:01:06]}  h5 {[%clk 0:02:04]} 44. gxh5 {[%clk 0:00:44]}  Kf5 {[%clk 0:02:04]} 45. h4 {[%clk 0:00:42]}  Kf6 {[%clk 0:02:04]} 46. Kd3 {[%clk 0:00:30]}  Kg7 {[%clk 0:02:04]} 47. Ke2 {[%clk 0:00:31]}  d4 {[%clk 0:02:04]} 48. Kf3 {[%clk 0:00:16]}  d3 {[%clk 0:02:05]} 49. Kf2 {[%clk 0:00:17]}  Kh6 {[%clk 0:02:04]} 50. b5 {[%clk 0:00:17]}  cxb5 {[%clk 0:02:04]} 0-1


[Site "https://www.chess.com"]

[Event "Titled Tuesday Blitz December 13 Early 2022"]
[White "Farmani Anosheh, Armin"]
[Black "Weetik, Vjacheslav"]
[WhiteFideId "24613240"]
[BlackFideId "4153472"]
[WhiteElo "2289"]
[BlackElo "2469"]
[Result "1-0"]
[Round "01"]
[TimeControl "180+1"]
[Date "2022.12.14"]
[WhiteClock "0:00:09"]
[BlackClock "0:00:03"]

1. d4 {[%clk 0:03:00]}  d5 {[%clk 0:02:57]} 2. c4 {[%clk 0:03:00]}  e6 {[%clk 0:02:57]} 3. Nf3 {[%clk 0:02:54]}  Nf6 {[%clk 0:02:57]} 4. g3 {[%clk 0:02:52]}  Bb4+ {[%clk 0:02:53]} 5. Bd2 {[%clk 0:02:51]}  a5 {[%clk 0:02:53]} 6. Qc2 {[%clk 0:02:29]}  Nc6 {[%clk 0:02:46]} 7. Bg2 {[%clk 0:02:15]}  dxc4 {[%clk 0:02:46]} 8. Qxc4 {[%clk 0:02:15]}  Qd5 {[%clk 0:02:44]} 9. Qxd5 {[%clk 0:02:14]}  exd5 {[%clk 0:02:44]} 10. O-O {[%clk 0:02:10]}  O-O {[%clk 0:02:35]} 11. Bf4 {[%clk 0:02:10]}  Bd6 {[%clk 0:02:30]} 12. Bxd6 {[%clk 0:02:10]}  cxd6 {[%clk 0:02:30]} 13. Nc3 {[%clk 0:02:10]}  Be6 {[%clk 0:02:20]} 14. Nb5 {[%clk 0:02:06]}  Rfd8 {[%clk 0:02:19]} 15. a4 {[%clk 0:02:02]}  Rac8 {[%clk 0:02:10]} 16. Rac1 {[%clk 0:02:02]}  Kf8 {[%clk 0:02:08]} 17. Rc3 {[%clk 0:02:01]}  Ne4 {[%clk 0:02:06]} 18. Rcc1 {[%clk 0:01:47]}  Nb4 {[%clk 0:01:55]} 19. Rfd1 {[%clk 0:01:32]}  Na2 {[%clk 0:01:38]} 20. Ra1 {[%clk 0:01:30]}  Nb4 {[%clk 0:01:37]} 21. Ne1 {[%clk 0:01:24]}  Ke7 {[%clk 0:01:30]} 22. Rac1 {[%clk 0:01:21]}  Na2 {[%clk 0:01:29]} 23. Ra1 {[%clk 0:01:21]}  Nb4 {[%clk 0:01:29]} 24. f3 {[%clk 0:01:19]}  Nf6 {[%clk 0:01:25]} 25. Rac1 {[%clk 0:01:19]}  Na2 {[%clk 0:01:24]} 26. Ra1 {[%clk 0:01:19]}  Nb4 {[%clk 0:01:24]} 27. Kf2 {[%clk 0:01:20]}  Ne8 {[%clk 0:01:06]} 28. g4 {[%clk 0:01:16]}  g5 {[%clk 0:01:00]} 29. e3 {[%clk 0:00:59]}  Nc7 {[%clk 0:00:54]} 30. Nc3 {[%clk 0:00:58]}  h5 {[%clk 0:00:43]} 31. h3 {[%clk 0:00:51]}  Na8 {[%clk 0:00:32]} 32. Nd3 {[%clk 0:00:47]}  Nb6 {[%clk 0:00:30]} 33. Rac1 {[%clk 0:00:32]}  Nc4 {[%clk 0:00:24]} 34. b3 {[%clk 0:00:30]}  Nxd3+ {[%clk 0:00:12]} 35. Rxd3 {[%clk 0:00:29]}  Nb6 {[%clk 0:00:11]} 36. Rdd1 {[%clk 0:00:27]}  Rc6 {[%clk 0:00:10]} 37. Ke1 {[%clk 0:00:18]}  Rdc8 {[%clk 0:00:10]} 38. Kd2 {[%clk 0:00:19]}  f5 {[%clk 0:00:09]} 39. gxf5 {[%clk 0:00:15]}  Bxf5 {[%clk 0:00:10]} 40. e4 {[%clk 0:00:11]}  Be6 {[%clk 0:00:04]} 41. Re1 {[%clk 0:00:11]}  Kf7 {[%clk 0:00:03]} 42. f4 {[%clk 0:00:09]}  gxf4 {[%clk 0:00:03]} 43. exd5 {[%clk 0:00:09]} 1-0


[Site "https://www.chess.com"]

[Event "Titled Tuesday Blitz December 13 Early 2022"]
[White "Fecker, Noah"]
[Black "Maghsoodloo, Parham"]
[WhiteFideId "1334263"]
[BlackFideId "12539929"]
[WhiteElo "2291"]
[BlackElo "2672"]
[Result "0-1"]
[Round "01"]
[TimeControl "180+1"]
[Date "2022.12.13"]
[WhiteClock "0:00:14"]
[BlackClock "0:01:45"]

1. e4 {[%clk 0:02:49]}  c5 {[%clk 0:02:59]} 2. Nf3 {[%clk 0:02:49]}  d6 {[%clk 0:02:57]} 3. g3 {[%clk 0:02:49]}  a6 {[%clk 0:02:53]} 4. Bg2 {[%clk 0:02:48]}  Nf6 {[%clk 0:02:53]} 5. Qe2 {[%clk 0:02:44]}  b5 {[%clk 0:02:46]} 6. e5 {[%clk 0:02:44]}  dxe5 {[%clk 0:02:46]} 7. Nxe5 {[%clk 0:02:43]}  Ra7 {[%clk 0:02:46]} 8. a4 {[%clk 0:02:42]}  Bb7 {[%clk 0:02:44]} 9. Bxb7 {[%clk 0:02:29]}  Rxb7 {[%clk 0:02:45]} 10. axb5 {[%clk 0:02:28]}  axb5 {[%clk 0:02:45]} 11. O-O {[%clk 0:02:27]}  e6 {[%clk 0:02:46]} 12. Nc3 {[%clk 0:02:27]}  Bd6 {[%clk 0:02:44]} 13. Re1 {[%clk 0:02:18]}  O-O {[%clk 0:02:43]} 14. d3 {[%clk 0:02:09]}  b4 {[%clk 0:02:40]} 15. Nd1 {[%clk 0:02:09]}  Bxe5 {[%clk 0:02:37]} 16. Qxe5 {[%clk 0:02:08]}  Nd5 {[%clk 0:02:37]} 17. Ne3 {[%clk 0:02:05]}  Nc6 {[%clk 0:02:37]} 18. Qh5 {[%clk 0:02:03]}  Nd4 {[%clk 0:02:37]} 19. Qd1 {[%clk 0:01:53]}  b3 {[%clk 0:02:33]} 20. c3 {[%clk 0:01:42]}  Nxe3 {[%clk 0:02:33]} 21. Bxe3 {[%clk 0:01:42]}  Nc2 {[%clk 0:02:34]} 22. Bxc5 {[%clk 0:01:42]}  Re8 {[%clk 0:02:24]} 23. Qf3 {[%clk 0:01:38]}  Rd7 {[%clk 0:02:20]} 24. d4 {[%clk 0:01:36]}  e5 {[%clk 0:02:16]} 25. dxe5 {[%clk 0:01:29]}  Rd3 {[%clk 0:02:16]} 26. Qb7 {[%clk 0:01:24]}  Qd5 {[%clk 0:02:01]} 27. Qxd5 {[%clk 0:01:07]}  Rxd5 {[%clk 0:02:02]} 28. Bd4 {[%clk 0:01:05]}  Nxe1 {[%clk 0:01:59]} 29. Rxe1 {[%clk 0:01:05]}  Ra8 {[%clk 0:01:59]} 30. Kf1 {[%clk 0:01:02]}  Ra2 {[%clk 0:01:58]} 31. Rb1 {[%clk 0:01:01]}  Rda5 {[%clk 0:01:55]} 32. Ke2 {[%clk 0:00:58]}  Ra1 {[%clk 0:01:55]} 33. Rxa1 {[%clk 0:00:58]}  Rxa1 {[%clk 0:01:56]} 34. c4 {[%clk 0:00:53]}  Rc1 {[%clk 0:01:55]} 35. c5 {[%clk 0:00:42]}  Kf8 {[%clk 0:01:55]} 36. Kd3 {[%clk 0:00:41]}  h5 {[%clk 0:01:51]} 37. f4 {[%clk 0:00:36]}  Rc2 {[%clk 0:01:50]} 38. Bc3 {[%clk 0:00:34]}  Rxh2 {[%clk 0:01:49]} 39. Kc4 {[%clk 0:00:32]}  Rg2 {[%clk 0:01:48]} 40. Kxb3 {[%clk 0:00:31]}  Rxg3 {[%clk 0:01:49]} 41. Kc4 {[%clk 0:00:29]}  Rxc3+ {[%clk 0:01:46]} 42. bxc3 {[%clk 0:00:26]}  h4 {[%clk 0:01:46]} 43. c6 {[%clk 0:00:20]}  Ke8 {[%clk 0:01:46]} 44. Kc5 {[%clk 0:00:20]}  h3 {[%clk 0:01:46]} 45. Kb6 {[%clk 0:00:18]}  h2 {[%clk 0:01:45]} 46. c7 {[%clk 0:00:14]}  Kd7 {[%clk 0:01:45]} 47. Kb7 {[%clk 0:00:14]}  h1=Q+ {[%clk 0:01:45]} 0-1


[Site "https://www.chess.com"]

[Event "Titled Tuesday Blitz December 13 Early 2022"]
[White "Fernandez Garcia, Gumersindo"]
[Black "Grandelius, Nils"]
[WhiteFideId "24516740"]
[BlackFideId "1710400"]
[WhiteElo "2140"]
[BlackElo "2617"]
[Result "0-1"]
[Round "01"]
[TimeControl "180+1"]
[Date "2022.12.13"]
[WhiteClock "0:00:42"]
[BlackClock "0:01:28"]

1. Nf3 {[%clk 0:02:56]}  c5 {[%clk 0:02:58]} 2. e4 {[%clk 0:02:55]}  b6 {[%clk 0:02:58]} 3. d4 {[%clk 0:02:55]}  cxd4 {[%clk 0:02:59]} 4. Nxd4 {[%clk 0:02:55]}  Bb7 {[%clk 0:03:00]} 5. Nc3 {[%clk 0:02:56]}  e6 {[%clk 0:03:00]} 6. Bd3 {[%clk 0:02:53]}  Nc6 {[%clk 0:02:57]} 7. Nxc6 {[%clk 0:02:49]}  Bxc6 {[%clk 0:02:58]} 8. O-O {[%clk 0:02:49]}  Bd6 {[%clk 0:02:54]} 9. f4 {[%clk 0:02:47]}  Ne7 {[%clk 0:02:50]} 10. Kh1 {[%clk 0:02:44]}  Ng6 {[%clk 0:02:46]} 11. e5 {[%clk 0:02:40]}  Be7 {[%clk 0:02:40]} 12. Be4 {[%clk 0:02:31]}  Rc8 {[%clk 0:02:37]} 13. Be3 {[%clk 0:02:27]}  Qc7 {[%clk 0:02:35]} 14. Rc1 {[%clk 0:02:22]}  O-O {[%clk 0:02:34]} 15. Qf3 {[%clk 0:02:15]}  f6 {[%clk 0:02:31]} 16. Bxc6 {[%clk 0:02:03]}  Qxc6 {[%clk 0:02:32]} 17. exf6 {[%clk 0:02:01]}  Qxf3 {[%clk 0:02:26]} 18. Rxf3 {[%clk 0:01:59]}  Bxf6 {[%clk 0:02:27]} 19. Bd2 {[%clk 0:01:47]}  Bxc3 {[%clk 0:02:27]} 20. Bxc3 {[%clk 0:01:41]}  Nxf4 {[%clk 0:02:19]} 21. Rd1 {[%clk 0:01:33]}  Nd5 {[%clk 0:02:19]} 22. Rg3 {[%clk 0:01:28]}  Nxc3 {[%clk 0:02:13]} 23. bxc3 {[%clk 0:01:29]}  Rf7 {[%clk 0:02:13]} 24. h4 {[%clk 0:01:28]}  Rc4 {[%clk 0:02:12]} 25. Rd4 {[%clk 0:01:21]}  Rxd4 {[%clk 0:02:11]} 26. cxd4 {[%clk 0:01:22]}  Rf4 {[%clk 0:02:12]} 27. Ra3 {[%clk 0:01:18]}  Rxh4+ {[%clk 0:02:08]} 28. Kg1 {[%clk 0:01:18]}  Rxd4 {[%clk 0:02:07]} 29. Rxa7 {[%clk 0:01:19]}  b5 {[%clk 0:02:06]} 30. Rb7 {[%clk 0:01:19]}  Rd5 {[%clk 0:02:04]} 31. a3 {[%clk 0:01:14]}  Kf7 {[%clk 0:02:05]} 32. Kf2 {[%clk 0:01:14]}  Ke7 {[%clk 0:02:05]} 33. Ke3 {[%clk 0:01:13]}  Kd6 {[%clk 0:02:05]} 34. Rb8 {[%clk 0:01:09]}  Rg5 {[%clk 0:02:03]} 35. Kf3 {[%clk 0:01:08]}  Kc7 {[%clk 0:02:04]} 36. Rh8 {[%clk 0:01:06]}  h5 {[%clk 0:02:04]} 37. Rh7 {[%clk 0:01:06]}  g6 {[%clk 0:02:02]} 38. Rg7 {[%clk 0:01:06]}  Kc6 {[%clk 0:02:01]} 39. g3 {[%clk 0:01:06]}  Rg4 {[%clk 0:02:00]} 40. Kf2 {[%clk 0:01:04]}  d6 {[%clk 0:01:56]} 41. Kf3 {[%clk 0:00:59]}  g5 {[%clk 0:01:52]} 42. Rh7 {[%clk 0:00:57]}  Rc4 {[%clk 0:01:35]} 43. Rxh5 {[%clk 0:00:55]}  g4+ {[%clk 0:01:36]} 44. Ke3 {[%clk 0:00:54]}  Rxc2 {[%clk 0:01:36]} 45. Rg5 {[%clk 0:00:53]}  Rc4 {[%clk 0:01:36]} 46. Rg6 {[%clk 0:00:49]}  Ra4 {[%clk 0:01:35]} 47. Rxe6 {[%clk 0:00:47]}  Rxa3+ {[%clk 0:01:32]} 48. Kf4 {[%clk 0:00:47]}  Ra4+ {[%clk 0:01:31]} 49. Kf5 {[%clk 0:00:48]}  Rc4 {[%clk 0:01:27]} 50. Re8 {[%clk 0:00:44]}  b4 {[%clk 0:01:28]} 51. Ke6 {[%clk 0:00:42]}  Re4+ {[%clk 0:01:28]} 0-1


[Site "https://www.chess.com"]

[Event "Titled Tuesday Blitz December 13 Early 2022"]
[White "Fiedorek, Michal"]
[Black "Papasimakopoulos, Alexandros"]
[WhiteFideId "1199528"]
[BlackFideId "4244125"]
[WhiteElo "2201"]
[BlackElo "2384"]
[Result "1-0"]
[Round "01"]
[TimeControl "180+1"]
[Date "2022.12.14"]
[WhiteClock "0:00:09"]
[BlackClock "0:00:12"]

1. Nf3 {[%clk 0:02:59]}  d5 {[%clk 0:02:37]} 2. c4 {[%clk 0:02:47]}  dxc4 {[%clk 0:02:34]} 3. g3 {[%clk 0:02:45]}  b6 {[%clk 0:02:30]} 4. Bg2 {[%clk 0:02:45]}  Bb7 {[%clk 0:02:29]} 5. O-O {[%clk 0:02:46]}  Nf6 {[%clk 0:02:28]} 6. Qa4+ {[%clk 0:02:46]}  Nbd7 {[%clk 0:02:27]} 7. Qxc4 {[%clk 0:02:46]}  e6 {[%clk 0:02:26]} 8. b3 {[%clk 0:02:45]}  Be7 {[%clk 0:02:25]} 9. Bb2 {[%clk 0:02:46]}  O-O {[%clk 0:02:26]} 10. d3 {[%clk 0:02:46]}  Nd5 {[%clk 0:02:25]} 11. Nbd2 {[%clk 0:02:45]}  Bf6 {[%clk 0:02:25]} 12. Bxf6 {[%clk 0:02:45]}  N5xf6 {[%clk 0:02:24]} 13. Rfd1 {[%clk 0:02:43]}  c5 {[%clk 0:02:21]} 14. Rac1 {[%clk 0:02:40]}  Rc8 {[%clk 0:02:21]} 15. Qh4 {[%clk 0:02:39]}  Nd5 {[%clk 0:02:20]} 16. Qxd8 {[%clk 0:02:33]}  Rfxd8 {[%clk 0:02:21]} 17. Nc4 {[%clk 0:02:32]}  Nb8 {[%clk 0:02:12]} 18. d4 {[%clk 0:02:24]}  cxd4 {[%clk 0:02:02]} 19. Nxd4 {[%clk 0:02:24]}  Nc6 {[%clk 0:01:35]} 20. Nb5 {[%clk 0:02:20]}  Nce7 {[%clk 0:01:22]} 21. Nbd6 {[%clk 0:02:14]}  b5 {[%clk 0:01:10]} 22. Nxb7 {[%clk 0:02:12]}  Rd7 {[%clk 0:01:05]} 23. Nca5 {[%clk 0:02:03]}  Rxc1 {[%clk 0:01:02]} 24. Rxc1 {[%clk 0:02:03]}  f5 {[%clk 0:00:59]} 25. e4 {[%clk 0:01:58]}  fxe4 {[%clk 0:00:59]} 26. Bxe4 {[%clk 0:01:59]}  b4 {[%clk 0:00:58]} 27. Kg2 {[%clk 0:01:43]}  Nc3 {[%clk 0:00:55]} 28. Bf3 {[%clk 0:01:34]}  Nf5 {[%clk 0:00:51]} 29. Nc5 {[%clk 0:01:30]}  Rd2 {[%clk 0:00:51]} 30. Nc4 {[%clk 0:01:24]}  Rxa2 {[%clk 0:00:49]} 31. Nxe6 {[%clk 0:01:21]}  g6 {[%clk 0:00:46]} 32. Nc5 {[%clk 0:01:12]}  Kg7 {[%clk 0:00:38]} 33. Ne4 {[%clk 0:01:08]}  Nd5 {[%clk 0:00:38]} 34. Ned6 {[%clk 0:01:01]}  Nxd6 {[%clk 0:00:28]} 35. Bxd5 {[%clk 0:00:58]}  Nf5 {[%clk 0:00:27]} 36. Rd1 {[%clk 0:00:47]}  a5 {[%clk 0:00:25]} 37. Be4 {[%clk 0:00:47]}  Ne7 {[%clk 0:00:23]} 38. Rd7 {[%clk 0:00:45]}  Kf6 {[%clk 0:00:21]} 39. Ra7 {[%clk 0:00:45]}  Re2 {[%clk 0:00:18]} 40. Bf3 {[%clk 0:00:45]}  Rc2 {[%clk 0:00:18]} 41. Rxa5 {[%clk 0:00:44]}  Rc3 {[%clk 0:00:18]} 42. Ne3 {[%clk 0:00:32]}  Rxb3 {[%clk 0:00:18]} 43. Nd5+ {[%clk 0:00:32]}  Nxd5 {[%clk 0:00:17]} 44. Bxd5 {[%clk 0:00:33]}  Rb2 {[%clk 0:00:18]} 45. Rb5 {[%clk 0:00:33]}  h6 {[%clk 0:00:17]} 46. h4 {[%clk 0:00:33]}  g5 {[%clk 0:00:17]} 47. hxg5+ {[%clk 0:00:30]}  hxg5 {[%clk 0:00:18]} 48. Kf3 {[%clk 0:00:30]}  Ke5 {[%clk 0:00:19]} 49. Ke3 {[%clk 0:00:26]}  Rb1 {[%clk 0:00:16]} 50. f4+ {[%clk 0:00:26]}  gxf4+ {[%clk 0:00:17]} 51. gxf4+ {[%clk 0:00:27]}  Kd6 {[%clk 0:00:17]} 52. Be4 {[%clk 0:00:26]}  Re1+ {[%clk 0:00:17]} 53. Kf3 {[%clk 0:00:26]}  Rf1+ {[%clk 0:00:18]} 54. Kg4 {[%clk 0:00:26]}  Re1 {[%clk 0:00:18]} 55. Kf5 {[%clk 0:00:23]}  Ra1 {[%clk 0:00:15]} 56. Rxb4 {[%clk 0:00:23]}  Ke7 {[%clk 0:00:16]} 57. Rb7+ {[%clk 0:00:22]}  Kf8 {[%clk 0:00:16]} 58. Kg4 {[%clk 0:00:20]}  Ra4 {[%clk 0:00:16]} 59. Bf5 {[%clk 0:00:17]}  Ra1 {[%clk 0:00:16]} 60. Kg5 {[%clk 0:00:17]}  Ra6 {[%clk 0:00:16]} 61. Bg6 {[%clk 0:00:17]}  Rc6 {[%clk 0:00:15]} 62. f5 {[%clk 0:00:17]}  Kg8 {[%clk 0:00:14]} 63. f6 {[%clk 0:00:17]}  Rc8 {[%clk 0:00:14]} 64. Rg7+ {[%clk 0:00:14]}  Kf8 {[%clk 0:00:14]} 65. Bf5 {[%clk 0:00:13]}  Rb8 {[%clk 0:00:14]} 66. Rh7 {[%clk 0:00:14]}  Kg8 {[%clk 0:00:12]} 67. f7+ {[%clk 0:00:11]}  Kf8 {[%clk 0:00:12]} 68. Rh8+ {[%clk 0:00:11]}  Kg7 {[%clk 0:00:11]} 69. Rxb8 {[%clk 0:00:12]}  Kxf7 {[%clk 0:00:12]} 70. Rb7+ {[%clk 0:00:12]}  Ke8 {[%clk 0:00:11]} 71. Kf6 {[%clk 0:00:13]}  Kd8 {[%clk 0:00:12]} 72. Bg4 {[%clk 0:00:09]}  Ke8 {[%clk 0:00:12]} 73. Rb8# {[%clk 0:00:09]} 1-0


[Site "https://www.chess.com"]